{"text_format":"1","workbook":"xlsx","n_sheets":1,"sheets":["Sheet1"],"not_rendered":{"charts":0,"images":0,"macros":1,"external_links":0,"defined_names":0,"comments":0,"pivot_tables":0},"unopened":[],"bounds":{"document_bytes":16777216,"sheet_cells":100000,"rows_first":2000,"rows_last":500,"rows_between":2000,"halvings":0,"cell_chars":16384,"cell_head_chars":4096},"cells_cut":0,"cells_raw":0,"read":"whole","date_system":"1900"}

{"sheet":"Sheet1","index":0,"n_rows":116,"n_cols":9,"rows_kept":116,"cut":false,"hidden":false,"merged":[[54,3,54,9],[50,3,50,9],[6,1,7,10],[21,3,21,9],[64,2,64,9],[62,3,62,9],[8,1,8,11],[57,2,57,9],[59,2,59,9],[51,3,51,9],[26,3,26,9],[32,2,32,8],[37,3,37,10],[17,2,17,8],[43,2,43,10],[11,2,11,8],[3,8,3,10],[3,1,3,3],[4,1,4,3],[3,5,3,6],[4,5,4,6],[115,2,115,10],[109,2,109,8],[30,2,30,8],[99,3,99,10],[36,3,36,10],[83,2,83,8],[77,2,77,8],[34,3,34,9],[91,3,91,9],[92,3,92,9],[93,3,93,9],[94,3,94,9],[95,3,95,9],[87,2,87,9],[60,3,60,10],[73,3,73,10],[88,3,88,9],[89,3,89,9],[69,3,69,9],[70,3,70,9],[71,3,71,9],[72,3,72,9],[85,2,85,11],[113,2,113,8],[19,2,19,8],[27,3,27,9],[22,3,22,9],[23,3,23,9],[24,3,24,9],[25,3,25,9],[96,3,96,9],[97,3,97,9],[98,3,98,9],[111,2,111,8],[90,3,90,9],[61,3,61,9],[101,2,101,8],[81,2,81,9],[49,3,49,9],[20,3,20,9],[33,3,33,10],[35,3,35,11],[15,2,15,9],[13,2,13,8],[107,2,107,11],[105,2,105,11],[28,3,28,10],[66,2,66,11],[74,3,74,9],[75,3,75,9],[67,3,67,9],[68,3,68,9],[55,3,55,9],[46,2,46,9],[47,3,47,9],[48,3,48,10],[52,3,52,9],[39,2,39,9],[41,2,41,10],[53,3,53,9]]}
[]
[]
[]
[]
[null,"Election Type",null,null,null,"Date of Election",null,null,"Cnty. Conducting Election"]
[]
[]
[]
[null,"If applicable, list the Cnty, Cty(s), or School(s) for which a School Election or Special Election was held."]
[]
[]
["1)",{"$f":"B18+B31","v":0},"Total Number of Provisional Ballots "]
[]
["2)",null,"Number of Provisional Ballots Cast - Early Voting "]
[]
["3)",null,"Number of Provisional Ballots Cast - Election Day Voting "]
[]
["4)",{"$f":"B14+B16","v":0},"* Total Number of In-Person Provisional Ballots Cast "]
[]
[null,null,"Reasons for Casting In-Person Provisional Ballots"]
[null,"A)",null,"Failure to Satisfy General ID Requirement"]
[null,"B)",null,"Failure to Satisfy First Time / Flagged ID Requirement"]
[null,"C)",null,"Voter Information Not Found on the PVR List (Poll Book)"]
[null,"D)",null,"Voters Marked as Having Been Sent an Absentee Ballot"]
[null,"E)",null,"Voter Marked as Having Already Voted"]
[null,"F)",null,"Voter Requests to Vote an Alternative Ballot"]
[null,"G)",null,"Ballot Cast during Court Ordered Extended Voting"]
[null,"H)",null,"Poll Watcher Challenge"]
[null,"I)",null,"Ballot was Improprly Cast as Provisional and was Counted"]
[]
["5)",null,"* Total Number of Absentee Ballots Made Provisional   "]
[]
[null,null,"Reasons Absentee Ballot was made Provisional"]
[null,"A)",null,"Failure to Satisfy General ID Requirement"]
[null,"B)",null,"Failure to Satisfy First Time / Flagged ID Requirement"]
[null,"C)",null,"Bearer, Agent, or Admin. Name Differed (envelope to voter statement)"]
[null,"D)",null,"Bearer's Name Differed (application to voter statement)"]
[null,"E)",null,"Poll Watcher Challenge"]
[]
["6)",null,"Number of Provisional Ballots Not Counted - Early Voting"]
[]
["7)",null,"Number of Provisional Ballots Not Counted - Election Day Voting"]
[]
["8)",{"$f":"C48+C49+C50+C51+C52+C53+C54+C55+C56","v":0},"† Total Number of Rejected Provisional Ballots  - In-Person Voting"]
[]
[]
[null,null,"Reasons for In-Person Provisional Ballot's Rejection"]
[null,"A)",null,"Not Registered to Vote"]
[null,"B)",null,"Failed to satisfy Post-Election ID Presentment Requirement"]
[null,"C)",null,"Determined to have Already Voted"]
[null,"D)",null,"Did not Sign the Provisional Ballot Envelope"]
[null,"E)",null,"Omitted Name from the Provisional Ballot Envelope"]
[null,"F)",null,"Omitted Address from the Provisional Ballot Envelope"]
[null,"G)",null,"Omitted DOB from the Provisional Ballot Envelope"]
[null,"H)",null,"Voted on the Wrong Ballot "]
[null,"I)",null,"Court Ordered Extended Voting Invalidated"]
[]
["9)",{"$f":"C61+C62+C63","v":0},"† Number of Rejected Provisional Ballots - Absentee Ballots  "]
[]
[null,null,"Reasons for Absentee Provisional Ballot's Rejection"]
[null,"A)",null,"Failed to satisfy Post-Election ID Presentment Requirement"]
[null,"B)",null,"Voted on the Wrong Ballot "]
[null,"C)",null,"Not Registered to Vote"]
[]
["10)",{"$f":"B44+B58","v":0},"Total Number of Rejected Provisional Ballots  "]
[]
[null,null,"Total Number of Provisional Ballots Rejected (Restated by Category) "]
[null,"A)",{"$f":"C48+C63","v":0},"Voter Found as Not Registered to Vote"]
[null,"B)",{"$f":"C55+C62","v":0},"Voted on the Wrong Ballot "]
[null,"C)",{"$f":"C51","v":0},"Did not Sign the Provisional Ballot Envelope"]
[null,"D)",{"$f":"C52","v":0},"Omitted Name from the Provisional Ballot Envelope"]
[null,"E)",{"$f":"C53","v":0},"Omitted Address from the Provisional Ballot Envelope"]
[null,"F)",{"$f":"C54","v":0},"Omitted DOB from the Provisional Ballot Envelope"]
[null,"G)",{"$f":"C49+C61","v":0},"Failed to satisfy Post-Election ID Presentment Requirement"]
[null,"H)",{"$f":"C50","v":0},"Determined to have Already Voted"]
[null,"I)",{"$f":"C56","v":0},"Court Ordered Extended Voting Invalidated"]
[]
["11)",{"$f":"B12-B65","v":0},"Total Number of Counted Provisional Ballots "]
[]
[]
[]
["12)",null,"Total Number of Absentee Ballots Returned (as of certification)  "]
[]
["13)",{"$f":"B58+B86","v":0},"Total Number of Absentee Ballots Rejected"]
[]
["14)",{"$f":"C89+C90+C91+C92+C93+C94+C95+C96+C97+C98+C99+C100","v":0},"† Number of Absentee Ballots Rejected (excluding absentee provisionals) "]
[]
[null,null,"Reasons for Absentee Ballot's Rejection (Non-Provisionals) "]
[null,"A)",null,"Did not Sign the Absentee Voter Statement"]
[null,"B)",null,"Omitted Name from the Absentee Voter Statement"]
[null,"C)",null,"Omitted Address from the Absentee Voter Statement"]
[null,"D)",null,"Omitted DOB from the Absentee Voter Statement"]
[null,"E)",null,"Failed to Return an Absentee Voter Statement"]
[null,"F)",null,"CBEC determined Signature did not Compare "]
[null,"G)",null,"CBEC determined Name did not Compare "]
[null,"H)",null,"CBEC determined Address did not Compare "]
[null,"I)",null,"CBEC determined DOB did not Compare "]
[null,"J)",null,"Ballot included in a Bulk Mailing"]
[null,"K)",null,"Ballot Returned After the Deadline (as of certification)"]
[null,"L)",null,"Failed to Satisfy Third Party Ballot Return Requirement"]
[]
["15)",{"$f":"B82-B84","v":0},"Total Number of Counted Absentee Ballots "]
[]
[]
[]
["16)",null,"Total Number of In-Person Regular Ballots Cast During Early Voting"]
[]
["17)",null,"Total Number of In-Person Regular Ballots Cast on Election Day"]
[]
["18)",{"$f":"B106+B108","v":0},"Total Number of In-Person Regular Ballots Cast "]
[]
["19)",{"$f":"B65+B86","v":0},"Total Number of Ballots Rejected "]
[]
["20)",{"$f":"(B18-B44)+B102+B110","v":0},"Total Number of Ballots Counted "]
[]
["21)",{"$f":"B112+B114","v":0},"Total Number of Ballots Cast  "]